fUSD/lending_fUSD_20260530
["ID","MTS","AMOUNT","RATE_DAILY","PERIOD"]
[423476692,1780155170000,-1000.0,0.00032877,10]
[423476693,1780155170000,-1000.0,0.00032877,10]
[423476696,1780155170000,-1000.0,0.00032877,10]
[423476685,1780155170000,-1000.0,0.00032877,10]
[423476697,1780155170000,-1000.0,0.00032877,10]
[423476699,1780155170000,-1000.0,0.00032877,10]
[423476700,1780155170000,-1000.0,0.00032877,10]
[423476701,1780155170000,-1000.0,0.00032877,10]
[423476707,1780155170000,-1000.0,0.00032877,10]
[423476706,1780155170000,-1000.0,0.00032877,10]
[423476704,1780155170000,-1000.0,0.00032877,10]
[423476705,1780155170000,-1000.0,0.00032877,10]
[423476703,1780155170000,-1000.0,0.00032877,10]
[423476702,1780155170000,-1000.0,0.00032877,10]
[423476708,1780155170000,-1000.0,0.00032877,10]
[423476709,1780155170000,-969.67962504,0.00032877,2]
[423476648,1780155170000,-500.0,0.00032876,2]
[423476698,1780155170000,-1000.0,0.00032877,10]
[423476682,1780155170000,-1000.0,0.00032877,10]
[423476710,1780155170000,-1000.0,0.00032877,10]
[423476678,1780155170000,-1000.0,0.00032877,10]
[423476652,1780155170000,-500.0,0.00032876,2]
[423476656,1780155170000,-544.26591594,0.00032876,2]
[423476655,1780155170000,-261.15693261,0.00032876,2]
[423476654,1780155170000,-500.0,0.00032876,2]
[423476660,1780155170000,-350.77,0.00032877,2]
[423476670,1780155170000,-1000.0,0.00032877,10]
[423476662,1780155170000,-1000.0,0.00032877,10]
[423476677,1780155170000,-1000.0,0.00032877,10]
[423476661,1780155170000,-1000.0,0.00032877,10]
[423476659,1780155170000,-359.00631746,0.00032876,2]
[423476667,1780155170000,-1000.0,0.00032877,10]
[423476668,1780155170000,-1000.0,0.00032877,10]
[423476665,1780155170000,-1000.0,0.00032877,10]
[423476663,1780155170000,-1000.0,0.00032877,10]
[423476664,1780155170000,-1000.0,0.00032877,10]
[423476666,1780155170000,-1000.0,0.00032877,10]
[423476672,1780155170000,-1000.0,0.00032877,10]
[423476681,1780155170000,-1000.0,0.00032877,10]
[423476683,1780155170000,-1000.0,0.00032877,10]
[423476679,1780155170000,-1000.0,0.00032877,10]
[423476680,1780155170000,-1000.0,0.00032877,10]
[423476673,1780155170000,-1000.0,0.00032877,10]
[423476675,1780155170000,-1000.0,0.00032877,10]
[423476674,1780155170000,-1000.0,0.00032877,10]
[423476671,1780155170000,-1000.0,0.00032877,10]
[423476669,1780155170000,-1000.0,0.00032877,10]
[423476676,1780155170000,-1000.0,0.00032877,10]
[423476756,1780155171000,-770.56024,0.00032877,7]
[423476755,1780155171000,-770.56024,0.00032877,7]
[423476752,1780155171000,-770.56024,0.00032877,7]
[423476757,1780155171000,-770.56024,0.00032877,7]
[423476747,1780155171000,-155.483477,0.00032877,7]
[423476740,1780155171000,-155.483475,0.00032877,7]
[423476748,1780155171000,-812.48,0.00032877,2]
[423476744,1780155171000,-155.483475,0.00032877,7]
[423476742,1780155171000,-155.483475,0.00032877,7]
[423476739,1780155171000,-155.483475,0.00032877,7]
[423476745,1780155171000,-155.483475,0.00032877,7]
[423476749,1780155171000,-770.56024,0.00032877,7]
[423476765,1780155171000,-770.56024,0.00032877,7]
[423476746,1780155171000,-155.483475,0.00032877,7]
[423476750,1780155171000,-770.56024,0.00032877,7]
[423476751,1780155171000,-770.56024,0.00032877,7]
[423476754,1780155171000,-770.56024,0.00032877,7]
[423476758,1780155171000,-770.56024,0.00032877,7]
[423476761,1780155171000,-770.56024,0.00032877,7]
[423476760,1780155171000,-770.56024,0.00032877,7]
[423476766,1780155171000,-770.56024,0.00032877,7]
[423476763,1780155171000,-770.56024,0.00032877,7]
[423476762,1780155171000,-770.56024,0.00032877,7]
[423476764,1780155171000,-770.56024,0.00032877,7]
[423476743,1780155171000,-155.483475,0.00032877,7]
[423476753,1780155171000,-770.56024,0.00032877,7]
[423476738,1780155171000,-155.483475,0.00032877,7]
[423476732,1780155171000,-155.483475,0.00032877,7]
[423476737,1780155171000,-155.483475,0.00032877,7]
[423476767,1780155171000,-770.56024,0.00032877,7]
[423476719,1780155171000,-1000.0,0.00032877,10]
[423476712,1780155171000,-1000.0,0.00032877,10]
[423476713,1780155171000,-1000.0,0.00032877,10]
[423476711,1780155171000,-1000.0,0.00032877,10]
[423476718,1780155171000,-1000.0,0.00032877,10]
[423476717,1780155171000,-1000.0,0.00032877,10]
[423476714,1780155171000,-1000.0,0.00032877,10]
[423476715,1780155171000,-1000.0,0.00032877,10]
[423476716,1780155171000,-1000.0,0.00032877,10]
[423476720,1780155171000,-1000.0,0.00032877,10]
[423476721,1780155171000,-1000.0,0.00032877,10]
[423476731,1780155171000,-155.483475,0.00032877,7]
[423476722,1780155171000,-1000.0,0.00032877,10]
[423476725,1780155171000,-1000.0,0.00032877,10]
[423476723,1780155171000,-1000.0,0.00032877,10]
[423476724,1780155171000,-1000.0,0.00032877,10]
[423476730,1780155171000,-155.483475,0.00032877,7]
[423476726,1780155171000,-1000.0,0.00032877,10]
[423476727,1780155171000,-1000.0,0.00032877,10]
[423476729,1780155171000,-155.483475,0.00032877,7]
[423476733,1780155171000,-155.483475,0.00032877,7]
[423476735,1780155171000,-155.483475,0.00032877,7]
[423476736,1780155171000,-155.483475,0.00032877,7]
[423476734,1780155171000,-155.483475,0.00032877,7]
[423476741,1780155171000,-155.483475,0.00032877,7]
[423476768,1780155171000,-770.560241,0.00032877,7]
[423476728,1780155171000,-155.483475,0.00032877,7]
[423476769,1780155171000,-1000.0,0.00032877,120]
[423476801,1780155171000,-776.42186545,0.00032914,7]
[423476803,1780155171000,-400.0,0.00032955,2]
[423476798,1780155171000,-500.0,0.00032877,2]
[423476799,1780155171000,-1008.05792606,0.00032877,30]
[423476805,1780155171000,-400.0,0.00032955,2]
[423476804,1780155171000,-400.0,0.00032955,2]
[423476812,1780155171000,-464.54876939,0.00033,7]
[423476806,1780155171000,-401.92854931,0.00032955,2]
[423476808,1780155171000,-425.5851433,0.00032955,2]
[423476825,1780155171000,-797.0,0.00033144,7]
[423476811,1780155171000,-1055.53480841,0.00033,7]
[423476807,1780155171000,-407.0,0.00032955,2]
[423476794,1780155171000,-500.0,0.00032877,2]
[423476810,1780155171000,-180.0,0.00032982,10]
[423476813,1780155171000,-590.98603903,0.00033,7]
[423476815,1780155171000,-36280.91049662,0.00033,3]
[423476814,1780155171000,-52258.02810232,0.00033,2]
[423476818,1780155171000,-350.0,0.00033014,5]
[423476816,1780155171000,-1000.0,0.00033,2]
[423476821,1780155171000,-2900.0,0.00033084,60]
[423476822,1780155171000,-184.93893171,0.0003309,75]
[423476817,1780155171000,-206.57,0.00033,120]
[423476823,1780155171000,-184.93893171,0.0003309,75]
[423476819,1780155171000,-152.0,0.00033038,27]
[423476820,1780155171000,-800.0,0.00033084,60]
[423476824,1780155171000,-309.6,0.00033096,120]
[423476809,1780155171000,-246.01222876,0.00032955,2]
[423476800,1780155171000,-5101.66010265,0.00032914,7]
[423476759,1780155171000,-770.56024,0.00032877,7]
[423476797,1780155171000,-500.0,0.00032877,2]
[423476771,1780155171000,-150.0,0.00032877,3]
[423476770,1780155171000,-216.33,0.00032877,120]
[423476772,1780155171000,-150.0,0.00032877,3]
[423476773,1780155171000,-150.0,0.00032877,3]
[423476778,1780155171000,-150.0,0.00032877,3]
[423476780,1780155171000,-150.0,0.00032877,3]
[423476776,1780155171000,-150.0,0.00032877,3]
[423476802,1780155171000,-500.0,0.00032951,25]
[423476775,1780155171000,-150.0,0.00032877,3]
[423476777,1780155171000,-150.0,0.00032877,3]
[423476779,1780155171000,-150.0,0.00032877,3]
[423476782,1780155171000,-150.0,0.00032877,3]
[423476792,1780155171000,-500.0,0.00032877,2]
[423476774,1780155171000,-150.0,0.00032877,3]
[423476785,1780155171000,-150.0,0.00032877,3]
[423476784,1780155171000,-150.0,0.00032877,3]
[423476796,1780155171000,-150.0,0.00032877,2]
[423476795,1780155171000,-500.0,0.00032877,2]
[423476793,1780155171000,-422.8941891,0.00032877,2]
[423476791,1780155171000,-500.0,0.00032877,2]
[423476787,1780155171000,-150.0,0.00032877,3]
[423476790,1780155171000,-282.0,0.00032877,3]
[423476786,1780155171000,-150.0,0.00032877,3]
[423476789,1780155171000,-150.0,0.00032877,3]
[423476783,1780155171000,-150.0,0.00032877,3]
[423476781,1780155171000,-150.0,0.00032877,3]
[423476788,1780155171000,-150.0,0.00032877,3]
[423476867,1780155172000,-500.1,0.00033881,31]
[423476865,1780155172000,-221.06,0.00033867,20]
[423476864,1780155172000,-309.6,0.00033836,120]
[423476871,1780155172000,-4336.64,0.000339,2]
[423476866,1780155172000,-500.1,0.00033881,31]
[423476856,1780155172000,-1861.0,0.00033693,30]
[423476870,1780155172000,-195.48,0.000339,2]
[423476855,1780155172000,-480.0,0.00033693,30]
[423476854,1780155172000,-467.0,0.00033693,30]
[423476858,1780155172000,-245.82986449,0.00033729,79]
[423476860,1780155172000,-1172.26792606,0.0003379,30]
[423476862,1780155172000,-784.93,0.00033835,7]
[423476879,1780155172000,-1071.59127093,0.00033978,2]
[423476869,1780155172000,-500.1,0.00033881,31]
[423476868,1780155172000,-500.1,0.00033881,31]
[423476861,1780155172000,-206.79450403,0.00033804,14]
[423476872,1780155172000,-500.0,0.00033939,27]
[423476873,1780155172000,-1305.03533456,0.00033946,2]
[423476881,1780155172000,-2070.97601559,0.00033978,2]
[423476880,1780155172000,-1150.71880794,0.00033978,2]
[423476874,1780155172000,-1229.62496573,0.00033949,2]
[423476875,1780155172000,-1149.90522117,0.00033952,2]
[423476882,1780155172000,-1334.75335018,0.00033978,2]
[423476876,1780155172000,-1229.0,0.00033958,11]
[423476883,1780155172000,-1225.79670336,0.00033978,2]
[423476857,1780155172000,-1879.0,0.00033693,30]
[423476863,1780155172000,-500.0,0.00033836,2]
[423476859,1780155172000,-245.82986449,0.00033729,79]
[423476846,1780155172000,-653.0,0.00033683,30]
[423476853,1780155172000,-1966.0,0.00033693,30]
[423476878,1780155172000,-350.0,0.00033973,5]
[423476827,1780155172000,-211.362269,0.000332,16]
[423476829,1780155172000,-40518.37338938,0.00033205,7]
[423476828,1780155172000,-251.149998,0.000332,16]
[423476831,1780155172000,-5101.66010265,0.00033225,7]
[423476833,1780155172000,-150.332472,0.00033247,2]
[423476830,1780155172000,-128311.4272639,0.00033205,7]
[423476832,1780155172000,-776.42186545,0.00033225,7]
[423476834,1780155172000,-309.6,0.00033342,120]
[423476835,1780155172000,-8311.4,0.000334,2]
[423476826,1780155172000,-895.114066,0.000332,16]
[423476837,1780155172000,-1229.0,0.00033403,10]
[423476849,1780155172000,-1342.0,0.00033684,30]
[423476842,1780155172000,-152.0,0.00033581,28]
[423476844,1780155172000,-793.42,0.00033596,14]
[423476847,1780155172000,-800.0,0.00033684,30]
[423476845,1780155172000,-748.57,0.00033668,7]
[423476838,1780155172000,-150.0,0.00033451,2]
[423476839,1780155172000,-1000.77311587,0.00033453,2]
[423476840,1780155172000,-1234.1937273,0.000335,2]
[423476841,1780155172000,-773.32,0.000335,7]
[423476836,1780155172000,-1500.0,0.000334,7]
[423476848,1780155172000,-414.0,0.00033684,30]
[423476852,1780155172000,-502.0,0.00033684,30]
[423476850,1780155172000,-1314.0,0.00033684,30]
[423476851,1780155172000,-675.0,0.00033684,30]
[423476843,1780155172000,-309.6,0.00033589,120]
[423476877,1780155172000,-1167.04245398,0.00033962,7]
[423476885,1780155172000,-1128.20108178,0.00033978,2]
[423476929,1780155172000,-18309.48,0.00034544,60]
[423476914,1780155172000,-400.0,0.00034453,2]
[423476912,1780155172000,-799.02,0.00034338,7]
[423476911,1780155172000,-309.6,0.00034329,120]
[423476916,1780155172000,-407.0,0.00034453,2]
[423476924,1780155172000,-1229.0,0.00034513,11]
[423476926,1780155172000,-1004.07,0.00034534,120]
[423476927,1780155172000,-894.49,0.00034544,60]
[423476923,1780155172000,-500.0,0.00034484,2]
[423476925,1780155172000,-150.0,0.00034521,2]
[423476928,1780155172000,-554.96,0.00034544,60]
[423476922,1780155172000,-306.9,0.00034479,120]
[423476931,1780155172000,-1074.0,0.00034547,7]
[423476930,1780155172000,-1069.7,0.00034544,60]
[423476932,1780155172000,-1350.98913704,0.00034568,14]
[423476934,1780155172000,-442.81,0.0003459,30]
[423476944,1780155172000,-1966.0,0.00034693,30]
[423476936,1780155172000,-152.0,0.00034669,30]
[423476933,1780155172000,-309.6,0.00034575,120]
[423476935,1780155172000,-270.01,0.00034646,120]
[423476938,1780155172000,-800.0,0.00034684,30]
[423476943,1780155172000,-502.0,0.00034684,30]
[423476937,1780155172000,-653.0,0.00034683,30]
[423476942,1780155172000,-675.0,0.00034684,30]
[423476939,1780155172000,-414.0,0.00034684,30]
[423476940,1780155172000,-1342.0,0.00034684,30]
[423476893,1780155172000,-187.8,0.00033986,13]
[423476941,1780155172000,-1314.0,0.00034684,30]
[423476915,1780155172000,-401.18163514,0.00034453,2]
[423476913,1780155172000,-400.0,0.00034453,2]
[423476921,1780155172000,-150.0,0.00034453,2]
[423476908,1780155172000,-600.0,0.00034212,120]
[423476894,1780155172000,-2871.22,0.00034,30]
[423476895,1780155172000,-1450.91,0.00034,30]
[423476884,1780155172000,-1870.36461593,0.00033978,2]
[423476887,1780155172000,-2235.76813634,0.00033978,2]
[423476889,1780155172000,-1112.02072036,0.00033981,2]
[423476886,1780155172000,-2129.36347822,0.00033978,2]
[423476888,1780155172000,-1268.18843972,0.00033978,2]
[423476891,1780155172000,-187.79,0.00033986,13]
[423476892,1780155172000,-187.79,0.00033986,13]
[423476910,1780155172000,-294.18278118,0.00034241,81]
[423476896,1780155172000,-171.307733,0.00034,20]
[423476898,1780155172000,-805.24,0.00034003,7]
[423476905,1780155172000,-175.858333,0.000342,21]
[423476897,1780155172000,-750.0,0.00034,2]
[423476890,1780155172000,-2506.18110948,0.00033981,2]
[423476906,1780155172000,-168.824,0.000342,21]
[423476917,1780155172000,-407.0,0.00034453,2]
[423476907,1780155172000,-412.924,0.000342,21]
[423476918,1780155172000,-407.0,0.00034453,2]
[423476920,1780155172000,-150.0,0.00034453,2]
[423476909,1780155172000,-294.18278118,0.00034241,81]
[423476902,1780155172000,-626.32306546,0.00034133,2]
[423476919,1780155172000,-150.0,0.00034453,2]
[423476904,1780155172000,-2671.5,0.00034182,7]
[423476903,1780155172000,-753.19,0.0003417,7]
[423476901,1780155172000,-152.0,0.00034125,29]
[423476899,1780155172000,-309.6,0.00034082,120]
[423476900,1780155172000,-1970.92,0.00034085,30]
[423476990,1780155173000,-1356.0,0.00035011,2]
[423476989,1780155173000,-1226.0,0.00035011,2]
[423476994,1780155173000,-1107.01,0.0003513,69]
[423476983,1780155173000,-5800.0,0.00035,2]
[423476985,1780155173000,-43003.09513652,0.00035,5]
[423476977,1780155173000,-1000.0,0.00035,30]
[423476978,1780155173000,-873.80982101,0.00035,30]
[423476980,1780155173000,-5107.95462011,0.00035,30]
[423476976,1780155173000,-38000.95059561,0.00035,20]
[423476971,1780155173000,-245.82,0.00035,2]
[423476993,1780155173000,-150.0,0.00035124,2]
[423476982,1780155173000,-5800.0,0.00035,2]
[423476988,1780155173000,-525.0,0.00035011,2]
[423477004,1780155173000,-250.0,0.0003543,7]
[423476991,1780155173000,-1229.0,0.00035067,12]
[423476986,1780155173000,-699.0,0.00035,120]
[423476987,1780155173000,-604.22,0.00035,120]
[423476992,1780155173000,-309.6,0.00035068,120]
[423476995,1780155173000,-252.639997,0.000352,26]
[423476998,1780155173000,-200.68812303,0.00035254,2]
[423476997,1780155173000,-152.0,0.00035213,31]
[423477005,1780155173000,-250.0,0.0003543,7]
[423477001,1780155173000,-1426.82,0.00035367,10]
[423477000,1780155173000,-244.10673829,0.00035358,87]
[423476996,1780155173000,-260.866336,0.000352,26]
[423476999,1780155173000,-309.6,0.00035315,120]
[423476975,1780155173000,-526.0,0.00035,5]
[423476984,1780155173000,-5800.0,0.00035,2]
[423476979,1780155173000,-2203.7606065,0.00035,7]
[423476945,1780155173000,-467.0,0.00034693,30]
[423476972,1780155173000,-340000.0,0.00035,4]
[423476947,1780155173000,-1861.0,0.00034693,30]
[423476957,1780155173000,-1175.98,0.0003485,120]
[423476946,1780155173000,-480.0,0.00034693,30]
[423476950,1780155173000,-1336.47,0.00034703,30]
[423476949,1780155173000,-244.745003,0.000347,24]
[423476952,1780155173000,-800.0,0.00034728,60]
[423476953,1780155173000,-1517.18538989,0.00034728,60]
[423476956,1780155173000,-1001.0,0.00034849,120]
[423476955,1780155173000,-309.6,0.00034822,120]
[423476951,1780155173000,-1102.58,0.00034711,7]
[423476954,1780155173000,-1500.0,0.00034795,2]
[423476959,1780155173000,-177.314997,0.0003495,25]
[423476981,1780155173000,-5800.0,0.00035,2]
[423476969,1780155173000,-1000.0,0.00035,14]
[423476961,1780155173000,-5800.0,0.00034992,2]
[423476963,1780155173000,-324.0,0.00035,3]
[423476966,1780155173000,-1055.53480841,0.00035,7]
[423476968,1780155173000,-590.98603903,0.00035,7]
[423476965,1780155173000,-410.5420813,0.00035,2]
[423476962,1780155173000,-93836.47331436,0.00035,7]
[423476964,1780155173000,-213.0,0.00035,7]
[423476967,1780155173000,-464.54876939,0.00035,7]
[423476960,1780155173000,-498.61169495,0.00034957,29]
[423476970,1780155173000,-1300.42969091,0.00035,14]
[423476974,1780155173000,-26302.36128184,0.00035,2]
[423476973,1780155173000,-1954.01135266,0.00035,2]
[423476958,1780155173000,-350.0,0.00034931,5]
[423477003,1780155173000,-250.0,0.0003543,7]
[423476948,1780155173000,-1879.0,0.00034693,30]
[423477006,1780155173000,-250.0,0.0003543,7]
[423477038,1780155173000,-605.58710719,0.00035452,2]
[423477039,1780155173000,-300.0,0.00035452,2]
[423477037,1780155173000,-300.72546941,0.00035452,2]
[423477040,1780155173000,-300.0,0.00035452,2]
[423477041,1780155173000,-1068.96552451,0.00035452,2]
[423477044,1780155173000,-727.4140771,0.00035452,2]
[423477046,1780155173000,-300.0,0.00035452,2]
[423477050,1780155173000,-300.0,0.00035452,2]
[423477047,1780155173000,-300.27200437,0.00035452,2]
[423477055,1780155173000,-300.0,0.00035452,2]
[423477048,1780155173000,-300.0,0.00035452,2]
[423477053,1780155173000,-344.6097279,0.00035452,2]
[423477045,1780155173000,-300.0,0.00035452,2]
[423477049,1780155173000,-300.0,0.00035452,2]
[423477051,1780155173000,-300.0,0.00035452,2]
[423477054,1780155173000,-300.42428784,0.00035452,2]
[423477052,1780155173000,-300.0,0.00035452,2]
[423477057,1780155173000,-300.0,0.00035452,2]
[423477056,1780155173000,-300.0,0.00035452,2]
[423477059,1780155173000,-950.91004484,0.00035452,2]
[423477060,1780155173000,-1800.57445984,0.00035452,2]
[423477058,1780155173000,-866.0147925,0.00035452,2]
[423477065,1780155173000,-300.0,0.00035452,2]
[423477061,1780155173000,-300.0,0.00035452,2]
[423477062,1780155173000,-300.0,0.00035452,2]
[423477064,1780155173000,-300.0,0.00035452,2]
[423477002,1780155173000,-201.0,0.0003538,120]
[423477036,1780155173000,-300.0,0.00035452,2]
[423477035,1780155173000,-300.000001,0.00035452,2]
[423477063,1780155173000,-310.1868234,0.00035452,2]
[423477031,1780155173000,-300.0,0.00035452,2]
[423477042,1780155173000,-535.00130983,0.00035452,2]
[423477007,1780155173000,-250.0,0.0003543,7]
[423477008,1780155173000,-355.0,0.00035447,14]
[423477012,1780155173000,-300.0,0.00035452,2]
[423477014,1780155173000,-300.0,0.00035452,2]
[423477011,1780155173000,-300.0,0.00035452,2]
[423477010,1780155173000,-300.0,0.00035452,2]
[423477015,1780155173000,-423.83162754,0.00035452,2]
[423477009,1780155173000,-300.0,0.00035452,2]
[423477013,1780155173000,-300.0,0.00035452,2]
[423477016,1780155173000,-300.0,0.00035452,2]
[423477017,1780155173000,-300.0,0.00035452,2]
[423477023,1780155173000,-464.71574173,0.00035452,2]
[423477022,1780155173000,-300.0,0.00035452,2]
[423477018,1780155173000,-300.0,0.00035452,2]
[423477024,1780155173000,-300.0,0.00035452,2]
[423477019,1780155173000,-300.0,0.00035452,2]
[423477043,1780155173000,-300.0,0.00035452,2]
[423477032,1780155173000,-300.0,0.00035452,2]
[423477028,1780155173000,-300.0,0.00035452,2]
[423477027,1780155173000,-300.43825552,0.00035452,2]
[423477034,1780155173000,-300.0,0.00035452,2]
[423477029,1780155173000,-300.0,0.00035452,2]
[423477025,1780155173000,-300.0,0.00035452,2]
[423477030,1780155173000,-300.0,0.00035452,2]
[423477021,1780155173000,-795.74447977,0.00035452,2]
[423477033,1780155173000,-300.0,0.00035452,2]
[423477026,1780155173000,-300.00000001,0.00035452,2]
[423477020,1780155173000,-300.39455227,0.00035452,2]
[423477105,1780155174000,-605.58710719,0.00035452,2]
[423477091,1780155174000,-300.0,0.00035452,2]
[423477102,1780155174000,-300.37673799,0.00035452,2]
[423477098,1780155174000,-300.0,0.00035452,2]
[423477094,1780155174000,-300.0,0.00035452,2]
[423477099,1780155174000,-300.000001,0.00035452,2]
[423477096,1780155174000,-300.0,0.00035452,2]
[423477097,1780155174000,-300.0,0.00035452,2]
[423477104,1780155174000,-300.66787971,0.00035452,2]
[423477103,1780155174000,-300.49333256,0.00035452,2]
[423477093,1780155174000,-300.0,0.00035452,2]
[423477095,1780155174000,-300.0,0.00035452,2]
[423477112,1780155174000,-594.73276515,0.00035452,2]
[423477106,1780155174000,-300.59355601,0.00035452,2]
[423477107,1780155174000,-300.00000001,0.00035452,2]
[423477109,1780155174000,-403.28594538,0.00035452,2]
[423477108,1780155174000,-300.0,0.00035452,2]
[423477111,1780155174000,-535.00130983,0.00035452,2]
[423477113,1780155174000,-727.41407711,0.00035452,2]
[423477110,1780155174000,-1068.96552453,0.00035452,2]
[423477116,1780155174000,-300.0,0.00035452,2]
[423477115,1780155174000,-302.40155512,0.00035452,2]
[423477090,1780155174000,-300.0,0.00035452,2]
[423477118,1780155174000,-300.0,0.00035452,2]
[423477114,1780155174000,-300.0,0.00035452,2]
[423477101,1780155174000,-366.2069021,0.00035452,2]
[423477074,1780155174000,-581.96066889,0.00035452,2]
[423477100,1780155174000,-300.0,0.00035452,2]
[423477126,1780155174000,-300.0,0.00035452,2]
[423477066,1780155174000,-1635.94357527,0.00035452,2]
[423477067,1780155174000,-300.0,0.00035452,2]
[423477076,1780155174000,-300.0,0.00035452,2]
[423477068,1780155174000,-300.0,0.00035452,2]
[423477077,1780155174000,-333.88854492,0.00035452,2]
[423477069,1780155174000,-595.09304777,0.00035452,2]
[423477072,1780155174000,-464.71574174,0.00035452,2]
[423477071,1780155174000,-300.0,0.00035452,2]
[423477070,1780155174000,-300.0,0.00035452,2]
[423477073,1780155174000,-300.0,0.00035452,2]
[423477092,1780155174000,-300.0,0.00035452,2]
[423477075,1780155174000,-300.0,0.00035452,2]
[423477079,1780155174000,-300.0,0.00035452,2]
[423477078,1780155174000,-432.98884642,0.00035452,2]
[423477080,1780155174000,-485.08697976,0.00035452,2]
[423477081,1780155174000,-310.47818434,0.00035452,2]
[423477083,1780155174000,-300.0,0.00035452,2]
[423477087,1780155174000,-829.13136622,0.00035452,2]
[423477086,1780155174000,-321.02284569,0.00035452,2]
[423477082,1780155174000,-300.0,0.00035452,2]
[423477084,1780155174000,-300.50431306,0.00035452,2]
[423477085,1780155174000,-300.0,0.00035452,2]
[423477088,1780155174000,-300.00000001,0.00035452,2]
[423477089,1780155174000,-300.0,0.00035452,2]
[423477119,1780155174000,-300.0,0.00035452,2]
[423477117,1780155174000,-300.70435696,0.00035452,2]
[423477124,1780155174000,-300.0,0.00035452,2]
[423477151,1780155174000,-300.0,0.00035452,2]
[423477152,1780155174000,-300.0,0.00035452,2]
[423477154,1780155174000,-300.0,0.00035452,2]
[423477164,1780155174000,-1097.08871066,0.00035452,2]
[423477165,1780155174000,-300.0,0.00035452,2]
[423477153,1780155174000,-300.00000001,0.00035452,2]
[423477161,1780155174000,-321.02284569,0.00035452,2]
[423477163,1780155174000,-300.0,0.00035452,2]
[423477159,1780155174000,-300.50431306,0.00035452,2]
[423477160,1780155174000,-300.0,0.00035452,2]
[423477157,1780155174000,-300.0,0.00035452,2]
[423477146,1780155174000,-464.71574172,0.00035452,2]
[423477156,1780155174000,-310.47818434,0.00035452,2]
[423477155,1780155174000,-485.08697976,0.00035452,2]
[423477167,1780155174000,-300.0,0.00035452,2]
[423477166,1780155174000,-300.0,0.00035452,2]
[423477169,1780155174000,-300.0,0.00035452,2]
[423477171,1780155174000,-300.0,0.00035452,2]
[423477168,1780155174000,-300.0,0.00035452,2]
[423477172,1780155174000,-300.0,0.00035452,2]
[423477170,1780155174000,-300.0,0.00035452,2]
[423477173,1780155174000,-300.00000001,0.00035452,2]
[423477175,1780155174000,-300.0,0.00035452,2]
[423477174,1780155174000,-300.0,0.00035452,2]
[423477162,1780155174000,-633.37972679,0.00035452,2]
[423477148,1780155174000,-578.60872649,0.00035452,2]
[423477158,1780155174000,-300.0,0.00035452,2]
[423477150,1780155174000,-300.0,0.00035452,2]
[423477120,1780155174000,-300.0,0.00035452,2]
[423477143,1780155174000,-595.09304777,0.00035452,2]
[423477125,1780155174000,-344.65046528,0.00035452,2]
[423477122,1780155174000,-300.0,0.00035452,2]
[423477123,1780155174000,-300.0,0.00035452,2]
[423477121,1780155174000,-300.0,0.00035452,2]
[423477138,1780155174000,-300.0,0.00035452,2]
[423477128,1780155174000,-300.0,0.00035452,2]
[423477130,1780155174000,-866.0147925,0.00035452,2]
[423477136,1780155174000,-310.1868234,0.00035452,2]
[423477135,1780155174000,-1149.55667962,0.00035452,2]
[423477129,1780155174000,-300.0,0.00035452,2]
[423477131,1780155174000,-950.91004484,0.00035452,2]